{"text_format":"1","workbook":"xlsx","n_sheets":3,"sheets":["Бланк Методички","Обработка результатов","Печать"],"not_rendered":{"charts":0,"images":1,"macros":1,"external_links":0,"defined_names":0,"comments":0,"pivot_tables":0},"unopened":[],"bounds":{"document_bytes":16777216,"sheet_cells":100000,"rows_first":2000,"rows_last":500,"rows_between":2000,"halvings":0,"cell_chars":16384,"cell_head_chars":4096},"cells_cut":0,"cells_raw":0,"read":"whole","date_system":"1900"}

{"sheet":"Бланк Методички","index":0,"n_rows":81,"n_cols":34,"rows_kept":81,"cut":false,"hidden":false,"merged":[[27,11,27,17],[33,11,33,17],[28,11,28,17],[29,11,29,17],[30,11,30,17],[31,11,31,17],[32,11,32,17],[22,11,22,17],[23,11,23,17],[24,11,24,17],[25,11,25,17],[26,11,26,17],[17,11,17,17],[18,11,18,17],[19,11,19,17],[20,11,20,17],[21,11,21,17],[17,1,17,10],[18,1,18,10],[19,1,19,10],[20,1,20,10],[21,1,21,10],[30,1,30,10],[31,1,31,10],[32,1,32,10],[33,1,33,10],[22,1,22,10],[26,1,26,10],[27,1,27,10],[28,1,28,10],[29,1,29,10],[23,1,23,10],[24,1,24,10],[25,1,25,10],[14,1,14,10],[15,1,15,10],[16,1,16,10],[4,0,7,14],[12,1,12,10],[11,1,11,10],[10,1,10,10],[13,1,13,10],[10,11,10,17],[11,11,11,17],[12,11,12,17],[13,11,13,17],[14,11,14,17],[15,11,15,17],[16,11,16,17],[2,15,2,18],[1,10,1,11],[1,12,1,14],[1,0,1,2],[1,3,1,8],[2,0,2,2],[2,3,2,8]]}
[null,null,null,null,null,null,null,null,null,null,null,null,null,null,null,null,null,null,null,null,null,null,null,null,null,null,null,null,null,null,null,null,10,"5 А"]
["Фамилия, имя",null,null,null,null,null,null,null,null,null,"Класс",null,null,null,null,null,null,null,null,null,null,null,null,null,null,null,null,null,null,null,null,null,11,"5 Б"]
["Возраст",null,null,null,null,null,null,null,null,null,null,null,null,null,null,null,null,null,null,null,null,null,null,null,null,null,null,null,null,null,null,null,12,"5 В"]
[null,null,null,null,null,null,null,null,null,null,null,null,null,null,null,null,null,null,null,null,null,null,null,null,null,null,null,null,null,null,null,null,13]
["Для того, чтобы определить свои профессиональные склонности, выберите один из трёх вариантов - \"а\", \"б\" или \"в\"",null,null,null,null,null,null,null,null,null,null,null,null,null,null,null,null,null,null,null,null,null,null,null,null,null,null,null,null,null,null,"Мальчик",14]
[null,null,null,null,null,null,null,null,null,null,null,null,null,null,null,null,null,null,null,null,null,null,null,null,null,null,null,null,null,null,null,"Девочка",15]
[null,null,null,null,null,null,null,null,null,null,null,null,null,null,null,null,null,null,null,null,null,null,null,null,null,null,null,null,null,null,null,null,16]
[]
[]
[null,null,null,null,null,null,null,null,null,null,null,null,null,null,null,null,null,null,null,null,null,null,null,null,null,null,"а) общаться с самыми разными людьми;"]
[1,"Мне хотелось бы в своей профессиональной деятельности…",null,null,null,null,null,null,null,null,null,null,null,null,null,null,null,null,null,null,null,null,null,null,null,null,"б) снимать фильмы, писать книги, рисовать, выступать на сцене и т.д."]
[2,"В книге или кинофильме меня больше всего привлекает…",null,null,null,null,null,null,null,null,null,null,null,null,null,null,null,null,null,null,null,null,null,null,null,null,"в) заниматься расчетами; вести документацию."]
[3,"Меня больше обрадует Нобелевская премия…",null,null,null,null,null,null,null,null,null,null,null,null,null,null,null,null,null,null,null,null,null,null,null,null,"а) возможность следить за ходом мыслей автора;"]
[4,"Я скорее соглашусь стать…",null,null,null,null,null,null,null,null,null,null,null,null,null,null,null,null,null,null,null,null,null,null,null,null,"б) художественная форма, мастерство писателя или режиссера;"]
[5,"Будущее людей определяют…",null,null,null,null,null,null,null,null,null,null,null,null,null,null,null,null,null,null,null,null,null,null,null,null,"в) сюжет, действия героев."]
[6,"Если я стану руководителем, то в первую очередь займусь…",null,null,null,null,null,null,null,null,null,null,null,null,null,null,null,null,null,null,null,null,null,null,null,null,"а) за общественную деятельность;"]
[7,"На технической выставке меня больше привлечет…",null,null,null,null,null,null,null,null,null,null,null,null,null,null,null,null,null,null,null,null,null,null,null,null,"б) в области науки;"]
[8,"В людях я ценю, прежде всего…",null,null,null,null,null,null,null,null,null,null,null,null,null,null,null,null,null,null,null,null,null,null,null,null,"в) в области искусства."]
[9,"В свободное время мне хотелось бы…",null,null,null,null,null,null,null,null,null,null,null,null,null,null,null,null,null,null,null,null,null,null,null,null,"а) главным механиком;"]
[10,"В заграничных поездках меня скорее заинтересует…",null,null,null,null,null,null,null,null,null,null,null,null,null,null,null,null,null,null,null,null,null,null,null,null,"б) начальником экспедиции;"]
[11,"Мне интереснее беседовать о…",null,null,null,null,null,null,null,null,null,null,null,null,null,null,null,null,null,null,null,null,null,null,null,null,"в) главным бухгалтером."]
[12,"Если бы в моей школе было всего три кружка, я бы выбрал(а)…",null,null,null,null,null,null,null,null,null,null,null,null,null,null,null,null,null,null,null,null,null,null,null,null,"а) взаимопонимание между людьми;"]
[13,"В школе следует обратить особое внимание на…",null,null,null,null,null,null,null,null,null,null,null,null,null,null,null,null,null,null,null,null,null,null,null,null,"б) научные открытия;"]
[14,"Я с большим удовольствием смотрю…",null,null,null,null,null,null,null,null,null,null,null,null,null,null,null,null,null,null,null,null,null,null,null,null,"в) развитие производства."]
[15,"Мне хотелось бы работать…",null,null,null,null,null,null,null,null,null,null,null,null,null,null,null,null,null,null,null,null,null,null,null,null,"а) созданием дружного, сплоченного коллектива;"]
[16,"Школа в первую очередь должна…",null,null,null,null,null,null,null,null,null,null,null,null,null,null,null,null,null,null,null,null,null,null,null,null,"б) разработкой новых технологий обучения;"]
[17,"Главное в жизни…",null,null,null,null,null,null,null,null,null,null,null,null,null,null,null,null,null,null,null,null,null,null,null,null,"в) работой с документами."]
[18,"Государство должно в первую очередь заботиться о…",null,null,null,null,null,null,null,null,null,null,null,null,null,null,null,null,null,null,null,null,null,null,null,null,"а) внутреннее устройство экспонатов;"]
[19,"Мне больше всего нравятся уроки…",null,null,null,null,null,null,null,null,null,null,null,null,null,null,null,null,null,null,null,null,null,null,null,null,"б) их практическое применение;"]
[20,"Мне интереснее было бы…",null,null,null,null,null,null,null,null,null,null,null,null,null,null,null,null,null,null,null,null,null,null,null,null,"в) внешний вид экспонатов (цвет, форма)."]
[21,"Я предпочитаю читать статьи о…",null,null,null,null,null,null,null,null,null,null,null,null,null,null,null,null,null,null,null,null,null,null,null,null,"а) дружелюбие и отзывчивость;"]
[22,"В свободное время я люблю…",null,null,null,null,null,null,null,null,null,null,null,null,null,null,null,null,null,null,null,null,null,null,null,null,"б) смелость и выносливость;"]
[23,"Больший интерес у меня вызовет сообщение о…",null,null,null,null,null,null,null,null,null,null,null,null,null,null,null,null,null,null,null,null,null,null,null,null,"в) обязательность и аккуратность."]
[24,"Я предпочту работать…",null,null,null,null,null,null,null,null,null,null,null,null,null,null,null,null,null,null,null,null,null,null,null,null,"а) ставить различные опыты, эксперименты;"]
[null,null,null,null,null,null,null,null,null,null,null,null,null,null,null,null,null,null,null,null,null,null,null,null,null,null,"б) писать стихи, сочинять музыку или рисовать;"]
[null,null,null,null,null,null,null,null,null,null,null,null,null,null,null,null,null,null,null,null,null,null,null,null,null,null,"в) тренироваться."]
[null,null,null,null,null,null,null,null,null,null,null,null,null,null,null,null,null,null,null,null,null,null,null,null,null,null,"а) возможность знакомства с историей и культурой другой страны;"]
[null,null,null,null,null,null,null,null,null,null,null,null,null,null,null,null,null,null,null,null,null,null,null,null,null,null,"б) экстремальный туризм (альпинизм, виндсерфинг, горные лыжи);"]
[null,null,null,null,null,null,null,null,null,null,null,null,null,null,null,null,null,null,null,null,null,null,null,null,null,null,"в) деловое общение"]
[null,null,null,null,null,null,null,null,null,null,null,null,null,null,null,null,null,null,null,null,null,null,null,null,null,null,"а) человеческих взаимоотношениях;"]
[null,null,null,null,null,null,null,null,null,null,null,null,null,null,null,null,null,null,null,null,null,null,null,null,null,null,"б) новой научной гипотезе;"]
[null,null,null,null,null,null,null,null,null,null,null,null,null,null,null,null,null,null,null,null,null,null,null,null,null,null,"в) технических характеристиках новой модели машины, компьютера."]
[null,null,null,null,null,null,null,null,null,null,null,null,null,null,null,null,null,null,null,null,null,null,null,null,null,null,"а) технический;"]
[null,null,null,null,null,null,null,null,null,null,null,null,null,null,null,null,null,null,null,null,null,null,null,null,null,null,"б) музыкальный;"]
[null,null,null,null,null,null,null,null,null,null,null,null,null,null,null,null,null,null,null,null,null,null,null,null,null,null,"в) спортивный."]
[null,null,null,null,null,null,null,null,null,null,null,null,null,null,null,null,null,null,null,null,null,null,null,null,null,null,"а) улучшение взаимопонимания между учителями и учениками;"]
[null,null,null,null,null,null,null,null,null,null,null,null,null,null,null,null,null,null,null,null,null,null,null,null,null,null,"б) поддержание здоровья учащихся, занятия спортом;"]
[null,null,null,null,null,null,null,null,null,null,null,null,null,null,null,null,null,null,null,null,null,null,null,null,null,null,"в) укрепление дисциплины."]
[null,null,null,null,null,null,null,null,null,null,null,null,null,null,null,null,null,null,null,null,null,null,null,null,null,null,"а) научно-популярные фильмы;"]
[null,null,null,null,null,null,null,null,null,null,null,null,null,null,null,null,null,null,null,null,null,null,null,null,null,null,"б) программы о культуре и искусстве;"]
[null,null,null,null,null,null,null,null,null,null,null,null,null,null,null,null,null,null,null,null,null,null,null,null,null,null,"в) спортивные программы."]
[null,null,null,null,null,null,null,null,null,null,null,null,null,null,null,null,null,null,null,null,null,null,null,null,null,null,"а) с детьми или сверстниками;"]
[null,null,null,null,null,null,null,null,null,null,null,null,null,null,null,null,null,null,null,null,null,null,null,null,null,null,"б) с машинами, механизмами;"]
[null,null,null,null,null,null,null,null,null,null,null,null,null,null,null,null,null,null,null,null,null,null,null,null,null,null,"в) с объектами природы."]
[null,null,null,null,null,null,null,null,null,null,null,null,null,null,null,null,null,null,null,null,null,null,null,null,null,null,"а) учить общению с другими людьми;"]
[null,null,null,null,null,null,null,null,null,null,null,null,null,null,null,null,null,null,null,null,null,null,null,null,null,null,"б) давать знания;"]
[null,null,null,null,null,null,null,null,null,null,null,null,null,null,null,null,null,null,null,null,null,null,null,null,null,null,"в) обучать навыкам работы."]
[null,null,null,null,null,null,null,null,null,null,null,null,null,null,null,null,null,null,null,null,null,null,null,null,null,null,"а) иметь возможность заниматься творчеством;"]
[null,null,null,null,null,null,null,null,null,null,null,null,null,null,null,null,null,null,null,null,null,null,null,null,null,null,"б) вести здоровый образ жизни;"]
[null,null,null,null,null,null,null,null,null,null,null,null,null,null,null,null,null,null,null,null,null,null,null,null,null,null,"в) тщательно планировать свои дела."]
[null,null,null,null,null,null,null,null,null,null,null,null,null,null,null,null,null,null,null,null,null,null,null,null,null,null,"а) защите интересов и прав граждан;"]
[null,null,null,null,null,null,null,null,null,null,null,null,null,null,null,null,null,null,null,null,null,null,null,null,null,null,"б) достижениях в области науки и техники;"]
[null,null,null,null,null,null,null,null,null,null,null,null,null,null,null,null,null,null,null,null,null,null,null,null,null,null,"в) материальном благополучии граждан."]
[null,null,null,null,null,null,null,null,null,null,null,null,null,null,null,null,null,null,null,null,null,null,null,null,null,null,"а) труда;"]
[null,null,null,null,null,null,null,null,null,null,null,null,null,null,null,null,null,null,null,null,null,null,null,null,null,null,"б) физкультуры;"]
[null,null,null,null,null,null,null,null,null,null,null,null,null,null,null,null,null,null,null,null,null,null,null,null,null,null,"в) математики."]
[null,null,null,null,null,null,null,null,null,null,null,null,null,null,null,null,null,null,null,null,null,null,null,null,null,null,"а) заниматься сбытом товаров;"]
[null,null,null,null,null,null,null,null,null,null,null,null,null,null,null,null,null,null,null,null,null,null,null,null,null,null,"б) изготавливать изделия;"]
[null,null,null,null,null,null,null,null,null,null,null,null,null,null,null,null,null,null,null,null,null,null,null,null,null,null,"в) планировать производство товаров."]
[null,null,null,null,null,null,null,null,null,null,null,null,null,null,null,null,null,null,null,null,null,null,null,null,null,null,"а) выдающихся ученых и их открытиях;"]
[null,null,null,null,null,null,null,null,null,null,null,null,null,null,null,null,null,null,null,null,null,null,null,null,null,null,"б) интересных изобретениях;"]
[null,null,null,null,null,null,null,null,null,null,null,null,null,null,null,null,null,null,null,null,null,null,null,null,null,null,"в) жизни и творчестве писателей, художников, музыкантов."]
[null,null,null,null,null,null,null,null,null,null,null,null,null,null,null,null,null,null,null,null,null,null,null,null,null,null,"а) читать, думать, рассуждать;"]
[null,null,null,null,null,null,null,null,null,null,null,null,null,null,null,null,null,null,null,null,null,null,null,null,null,null,"б) что-нибудь мастерить, шить, ухаживать за животными, растениями;"]
[null,null,null,null,null,null,null,null,null,null,null,null,null,null,null,null,null,null,null,null,null,null,null,null,null,null,"в) ходить на выставки, концерты, в музеи."]
[null,null,null,null,null,null,null,null,null,null,null,null,null,null,null,null,null,null,null,null,null,null,null,null,null,null,"а) научном открытии;"]
[null,null,null,null,null,null,null,null,null,null,null,null,null,null,null,null,null,null,null,null,null,null,null,null,null,null,"б) художественной выставке;"]
[null,null,null,null,null,null,null,null,null,null,null,null,null,null,null,null,null,null,null,null,null,null,null,null,null,null,"в) экономической ситуации."]
[null,null,null,null,null,null,null,null,null,null,null,null,null,null,null,null,null,null,null,null,null,null,null,null,null,null,"а) в помещении, где много людей;"]
[null,null,null,null,null,null,null,null,null,null,null,null,null,null,null,null,null,null,null,null,null,null,null,null,null,null,"б) в необычных условиях;"]
[null,null,null,null,null,null,null,null,null,null,null,null,null,null,null,null,null,null,null,null,null,null,null,null,null,null,"в) в обычном кабинете."]

{"sheet":"Обработка результатов","index":1,"n_rows":27,"n_cols":49,"rows_kept":27,"cut":false,"hidden":true,"merged":[[4,17,4,24],[5,17,5,24],[6,17,6,24],[1,26,1,35],[2,26,2,35],[3,26,3,35],[4,26,4,35],[5,26,5,35],[6,26,6,35],[0,0,0,6],[0,9,0,15],[1,17,1,24],[2,17,2,24],[3,17,3,24]]}
["Образец бланка",null,null,null,null,null,null,null,null,"Ответы"]
[null,"I","II","III","IV","V","VI",null,null,null,"I","II","III","IV","V","VI",null,"Cклонность к работе с людьми",null,null,null,null,null,null,null,{"$f":"K27","v":0},{"$f":"IF(AND(Z2>=0,Z2<=3),\"Профессиональная склонность не выражена\",IF(AND(Z2>=4,Z2<=6),\"Cлабо выраженная профессиональная склонность\",IF(AND(Z2>=7,Z2<=9),\"Склонность к определенному виду деятельности\",IF(AND(Z2>=10,Z2<=12),\"Ярко выраженная профессиональная склонность\"))))","v":"Профессиональная склонность не выражена"}]
[1,"а",null,null,"б",null,"в",null,null,1,{"$f":"IF('Бланк Методички'!L11='Бланк Методички'!AA10,\"а\",)","v":0},null,null,{"$f":"IF('Бланк Методички'!L11='Бланк Методички'!AA11,\"б\",)","v":0},null,{"$f":"IF('Бланк Методички'!L11='Бланк Методички'!AA12,\"в\",)","v":0},null,"Cклонность к исследовательской (интеллектуальной) работе",null,null,null,null,null,null,null,{"$f":"L27","v":0},{"$f":"IF(AND(Z3>=0,Z3<=3),\"Профессиональная склонность не выражена\",IF(AND(Z3>=4,Z3<=6),\"Cлабо выраженная профессиональная склонность\",IF(AND(Z3>=7,Z3<=9),\"Склонность к определенному виду деятельности\",IF(AND(Z3>=10,Z3<=12),\"Ярко выраженная профессиональная склонность\"))))","v":"Профессиональная склонность не выражена"}]
[2,null,"а",null,"б","в",null,null,null,2,null,{"$f":"IF('Бланк Методички'!L12='Бланк Методички'!AA13,\"а\",)","v":0},null,{"$f":"IF('Бланк Методички'!L12='Бланк Методички'!AA14,\"б\",)","v":0},{"$f":"IF('Бланк Методички'!L12='Бланк Методички'!AA15,\"в\",)","v":0},null,null,"Cклонность к практической деятельности",null,null,null,null,null,null,null,{"$f":"M27","v":0},"Профессиональная склонность не выражена"]
[3,"а","б",null,"в",null,null,null,null,3,{"$f":"IF('Бланк Методички'!L13='Бланк Методички'!AA16,\"а\",)","v":0},{"$f":"IF('Бланк Методички'!L13='Бланк Методички'!AA17,\"б\",)","v":0},null,{"$f":"IF('Бланк Методички'!L13='Бланк Методички'!AA18,\"в\",)","v":0},null,null,null,"Cклонность к эстетическим видам деятельности",null,null,null,null,null,null,null,{"$f":"N27","v":0},"Профессиональная склонность не выражена"]
[4,null,null,"а",null,"б","в",null,null,4,null,null,{"$f":"IF('Бланк Методички'!L14='Бланк Методички'!AA19,\"а\",)","v":0},null,{"$f":"IF('Бланк Методички'!L14='Бланк Методички'!AA20,\"б\",)","v":0},{"$f":"IF('Бланк Методички'!L14='Бланк Методички'!AA21,\"в\",)","v":0},null,"Cклонность к экстремальным видам деятельности",null,null,null,null,null,null,null,{"$f":"O27","v":0},"Профессиональная склонность не выражена"]
[5,"а","б","в",null,null,null,null,null,5,{"$f":"IF('Бланк Методички'!L15='Бланк Методички'!AA22,\"а\",)","v":0},{"$f":"IF('Бланк Методички'!L15='Бланк Методички'!AA23,\"б\",)","v":0},{"$f":"IF('Бланк Методички'!L15='Бланк Методички'!AA24,\"в\",)","v":0},null,null,null,null,"Cклонность к планово-экономическим видам деятельности",null,null,null,null,null,null,null,{"$f":"P27","v":0},"Профессиональная склонность не выражена"]
[6,"а","б",null,null,null,"в",null,null,6,{"$f":"IF('Бланк Методички'!L16='Бланк Методички'!AA25,\"а\",)","v":0},{"$f":"IF('Бланк Методички'!L16='Бланк Методички'!AA26,\"б\",)","v":0},null,null,null,{"$f":"IF('Бланк Методички'!L16='Бланк Методички'!AA27,\"в\",)","v":0}]
[7,null,"а","б","в",null,null,null,null,7,null,{"$f":"IF('Бланк Методички'!L17='Бланк Методички'!AA28,\"а\",)","v":0},{"$f":"IF('Бланк Методички'!L17='Бланк Методички'!AA29,\"б\",)","v":0},{"$f":"IF('Бланк Методички'!L17='Бланк Методички'!AA30,\"в\",)","v":0}]
[8,"а",null,null,null,"б","в",null,null,8,{"$f":"IF('Бланк Методички'!L18='Бланк Методички'!AA30,\"а\",)","v":0},null,null,null,{"$f":"IF('Бланк Методички'!L18='Бланк Методички'!AA31,\"б\",)","v":0},{"$f":"IF('Бланк Методички'!L18='Бланк Методички'!AA32,\"в\",)","v":0}]
[9,null,"а",null,"б","в",null,null,null,9,null,{"$f":"IF('Бланк Методички'!L19='Бланк Методички'!AA34,\"а\",)","v":0},null,{"$f":"IF('Бланк Методички'!L19='Бланк Методички'!AA35,\"б\",)","v":0},{"$f":"IF('Бланк Методички'!L19='Бланк Методички'!AA36,\"в\",)","v":0},null,null,null,null,null,null,null,null,null,null,null,null,null,null,null,null,null,null,null,null,null,null,null,null,null,null,null,null,null,null,{"$f":"'Бланк Методички'!L24","v":0},{"$f":"'Бланк Методички'!L40","v":0},{"$f":"'Бланк Методички'!L48","v":0}]
[10,null,null,null,"а","б","в",null,null,10,null,null,null,{"$f":"IF('Бланк Методички'!L20='Бланк Методички'!AA37,\"а\",)","v":0},{"$f":"IF('Бланк Методички'!L20='Бланк Методички'!AA38,\"б\",)","v":0},{"$f":"IF('Бланк Методички'!L20='Бланк Методички'!AA39,\"в\",)","v":0},null,null,null,null,null,null,null,null,null,null,null,null,null,null,null,null,null,null,null,null,null,null,null,null,null,null,null,null,null,{"$f":"'Бланк Методички'!L14","v":0},{"$f":"'Бланк Методички'!L30","v":0},{"$f":"'Бланк Методички'!L42","v":0}]
[11,"а","б","в",null,null,null,null,null,11,{"$f":"IF('Бланк Методички'!L21='Бланк Методички'!AA40,\"а\",)","v":0},{"$f":"IF('Бланк Методички'!L21='Бланк Методички'!AA41,\"б\",)","v":0},{"$f":"IF('Бланк Методички'!L21='Бланк Методички'!AA42,\"в\",)","v":0},null,null,null,null,null,null,null,null,null,null,null,null,null,null,null,null,null,null,null,null,null,null,null,null,null,null,null,null,null,null,null,null,{"$f":"'Бланк Методички'!L11","v":0},{"$f":"'Бланк Методички'!L19","v":0},{"$f":"'Бланк Методички'!L35","v":0},{"$f":"'Бланк Методички'!L43","v":0}]
[12,null,null,"а","б","в",null,null,null,12,null,null,{"$f":"IF('Бланк Методички'!L22='Бланк Методички'!AA43,\"а\",)","v":0},{"$f":"IF('Бланк Методички'!L22='Бланк Методички'!AA44,\"б\",)","v":0},{"$f":"IF('Бланк Методички'!L22='Бланк Методички'!AA45,\"в\",)","v":0}]
[13,"а",null,null,null,"б","в",null,null,13,{"$f":"IF('Бланк Методички'!L23='Бланк Методички'!AA46,\"а\",)","v":0},null,null,null,{"$f":"IF('Бланк Методички'!L23='Бланк Методички'!AA47,\"б\",)","v":0},{"$f":"IF('Бланк Методички'!L23='Бланк Методички'!AA48,\"в\",)","v":0}]
[14,null,"а",null,"б","в",null,null,null,14,null,{"$f":"IF('Бланк Методички'!L24='Бланк Методички'!AA49,\"а\",)","v":0},null,{"$f":"IF('Бланк Методички'!L24='Бланк Методички'!AA50,\"б\",)","v":0},{"$f":"IF('Бланк Методички'!L24='Бланк Методички'!AA51,\"в\",)","v":0}]
[15,"а",null,"б",null,"в",null,null,null,15,{"$f":"IF('Бланк Методички'!L25='Бланк Методички'!AA52,\"а\",)","v":0},null,{"$f":"IF('Бланк Методички'!L25='Бланк Методички'!AA53,\"б\",)","v":0},null,{"$f":"IF('Бланк Методички'!L25='Бланк Методички'!AA54,\"в\",)","v":0}]
[16,"а",null,"б",null,null,"в",null,null,16,{"$f":"IF('Бланк Методички'!L26='Бланк Методички'!AA55,\"а\",)","v":0},null,{"$f":"IF('Бланк Методички'!L26='Бланк Методички'!AA56,\"б\",)","v":0},null,null,{"$f":"IF('Бланк Методички'!L26='Бланк Методички'!AA57,\"в\",)","v":0}]
[17,null,null,null,"а","б","в",null,null,17,null,null,null,{"$f":"IF('Бланк Методички'!L27='Бланк Методички'!AA58,\"а\",)","v":0},{"$f":"IF('Бланк Методички'!L27='Бланк Методички'!AA59,\"б\",)","v":0},{"$f":"IF('Бланк Методички'!L27='Бланк Методички'!AA60,\"в\",)","v":0}]
[18,"а","б","в",null,null,null,null,null,18,{"$f":"IF('Бланк Методички'!L28='Бланк Методички'!AA61,\"а\",)","v":0},{"$f":"IF('Бланк Методички'!L28='Бланк Методички'!AA62,\"б\",)","v":0},{"$f":"IF('Бланк Методички'!L28='Бланк Методички'!AA63,\"в\",)","v":0}]
[19,null,null,"а",null,"б","в",null,null,19,null,null,{"$f":"IF('Бланк Методички'!L29='Бланк Методички'!AA64,\"а\",)","v":0},null,{"$f":"IF('Бланк Методички'!L29='Бланк Методички'!AA65,\"б\",)","v":0},{"$f":"IF('Бланк Методички'!L29='Бланк Методички'!AA66,\"в\",)","v":0}]
[20,"а",null,"б",null,null,"в",null,null,20,{"$f":"IF('Бланк Методички'!L30='Бланк Методички'!AA67,\"а\",)","v":0},null,{"$f":"IF('Бланк Методички'!L30='Бланк Методички'!AA68,\"б\",)","v":0},null,null,{"$f":"IF('Бланк Методички'!L30='Бланк Методички'!AA69,\"в\",)","v":0}]
[21,null,"а","б","в",null,null,null,null,21,null,{"$f":"IF('Бланк Методички'!L31='Бланк Методички'!AA70,\"а\",)","v":0},{"$f":"IF('Бланк Методички'!L31='Бланк Методички'!AA71,\"б\",)","v":0},{"$f":"IF('Бланк Методички'!L31='Бланк Методички'!AA72,\"в\",)","v":0}]
[22,null,"а","б","в",null,null,null,null,22,null,{"$f":"IF('Бланк Методички'!L32='Бланк Методички'!AA73,\"а\",)","v":0},{"$f":"IF('Бланк Методички'!L32='Бланк Методички'!AA74,\"б\",)","v":0},{"$f":"IF('Бланк Методички'!L32='Бланк Методички'!AA75,\"в\",)","v":0}]
[23,null,"а",null,"б",null,"в",null,null,23,null,{"$f":"IF('Бланк Методички'!L33='Бланк Методички'!AA76,\"а\",)","v":0},null,{"$f":"IF('Бланк Методички'!L33='Бланк Методички'!AA77,\"б\",)","v":0},null,{"$f":"IF('Бланк Методички'!L33='Бланк Методички'!AA78,\"в\",)","v":0}]
[24,"а",null,null,null,"б","в",null,null,24,{"$f":"IF('Бланк Методички'!L34='Бланк Методички'!AA79,\"а\",)","v":0},null,null,null,{"$f":"IF('Бланк Методички'!L34='Бланк Методички'!AA80,\"б\",)","v":0},{"$f":"IF('Бланк Методички'!L34='Бланк Методички'!AA81,\"в\",)","v":0}]
["Сумма баллов",null,null,null,null,null,null,null,null,"Сумма баллов",{"$f":"COUNTIF(K3:K26,\"<>0\")-12","v":0},{"$f":"COUNTIF(L3:L26,\"<>0\")-12","v":0},{"$f":"COUNTIF(M3:M26,\"<>0\")-12","v":0},{"$f":"COUNTIF(N3:N26,\"<>0\")-12","v":0},0,0]

{"sheet":"Печать","index":2,"n_rows":12,"n_cols":8,"rows_kept":12,"cut":false,"hidden":false,"merged":[[5,0,5,4],[6,0,6,4],[7,0,7,4],[8,0,8,4],[9,0,9,4],[6,6,6,8],[7,6,7,8],[8,6,8,8],[9,6,9,8],[5,6,5,8],[0,0,0,8],[2,7,2,8],[3,7,3,8],[2,1,2,5],[3,1,3,5],[14,0,14,8],[15,0,15,8],[16,0,16,8],[12,0,12,8],[11,0,11,4],[11,6,11,8],[30,0,30,8],[36,0,36,8],[31,0,31,8],[32,0,32,8],[33,0,33,8],[34,0,34,8],[35,0,35,8],[10,0,10,4],[10,6,10,8],[27,0,27,8],[28,0,28,8],[29,0,29,8],[22,0,22,8],[23,0,23,8],[24,0,24,8],[25,0,25,8],[26,0,26,8],[17,0,17,8],[18,0,18,8],[19,0,19,8],[20,0,20,8],[21,0,21,8],[13,0,13,8]]}
["Опросник профессиональных склонностей"]
[]
["ФИО",{"$f":"'Бланк Методички'!D2","v":0},null,null,null,null,"Класс",{"$f":"'Бланк Методички'!M2","v":0}]
["Возраст",{"$f":"CONCATENATE('Бланк Методички'!D3, \" лет\")","v":" лет"},null,null,null,null,"Дата",{"$f":"TODAY()","v":"2018-02-02"}]
[]
["Шкала",null,null,null,null,"Баллы","Уровень"]
["Cклонность к работе с людьми",null,null,null,null,{"$f":"'Обработка результатов'!Z2","v":0},{"$f":"'Обработка результатов'!AA2","v":"Профессиональная склонность не выражена"}]
["Cклонность к исследовательской (интеллектуальной) работе",null,null,null,null,{"$f":"'Обработка результатов'!Z3","v":0},{"$f":"'Обработка результатов'!AA3","v":"Профессиональная склонность не выражена"}]
["Cклонность к практической деятельности",null,null,null,null,{"$f":"'Обработка результатов'!Z4","v":0},{"$f":"'Обработка результатов'!AA4","v":"Профессиональная склонность не выражена"}]
["Cклонность к эстетическим видам деятельности",null,null,null,null,{"$f":"'Обработка результатов'!Z5","v":0},{"$f":"'Обработка результатов'!AA5","v":"Профессиональная склонность не выражена"}]
["Cклонность к экстремальным видам деятельности",null,null,null,null,{"$f":"'Обработка результатов'!Z6","v":0},{"$f":"'Обработка результатов'!AA6","v":"Профессиональная склонность не выражена"}]
["Cклонность к планово-экономическим видам деятельности",null,null,null,null,{"$f":"'Обработка результатов'!Z7","v":0},{"$f":"'Обработка результатов'!AA7","v":"Профессиональная склонность не выражена"}]